bitfinex/quotes_SOLUSD_20241205
["timestamp","ask_amount","ask_price","bid_price","bid_amount"]
[1733442747831,87.49527294,235.68,235.57,8.3340888]
[1733442748052,87.0,235.68,235.57,8.3340888]
[1733442748233,0.49527294,235.67,235.57,8.3340888]
[1733442748435,87.0,235.74,235.57,8.3340888]
[1733442748738,87.49527294,235.73,235.62,20.0]
[1733442748928,12.9928,235.8,235.63,23.776884]
[1733442749124,87.49527294,235.79,235.63,23.776884]
[1733442749335,87.0,235.79,235.63,23.776884]
[1733442749556,0.49527294,235.78,235.63,23.776884]
[1733442750153,20.0,235.76,235.63,23.776884]
[1733442750362,87.0,235.74,235.63,23.776884]
[1733442750538,0.49527294,235.73,235.63,23.776884]
[1733442751357,87.0,235.79,235.67,23.776884]
[1733442751546,0.49527294,235.78,235.67,23.776884]
[1733442751991,0.49527294,235.78,235.7,20.0]
[1733442752161,0.49527294,235.8,235.71,23.776884]
[1733442752739,0.58610533,235.82,235.71,23.776884]
[1733442753447,0.07745034,235.72,235.71,23.776884]
[1733442754170,0.07745034,235.72,235.62,20.5623]
[1733442754348,0.07745034,235.72,235.62,22.22041694]
[1733442755136,0.07745034,235.72,235.62,20.5623]
[1733442756433,0.49527294,235.71,235.62,20.5623]
[1733442756845,0.49527294,235.71,235.62,8.0029]
[1733442757059,0.57272328,235.72,235.62,8.0029]
[1733442757249,0.07745034,235.72,235.63,11.61865589]
[1733442757435,0.07745034,235.72,235.63,6.3606061]
[1733442758042,0.07745034,235.72,235.66,20.0]
[1733442758248,0.07745034,235.72,235.67,23.776884]
[1733442758645,0.07745034,235.72,235.7,20.0]
[1733442759048,0.07745034,235.72,235.68,0.63634778]
[1733442759249,0.07745034,235.72,235.69,23.776884]
[1733442760042,0.07745034,235.72,235.71,23.776884]
[1733442760848,87.0,235.91,235.74,43.776884]
[1733442761055,0.49527294,235.9,235.76,23.776884]
[1733442761257,0.49527294,235.94,235.77,0.63594303]
[1733442761456,0.49527294,235.94,235.76,23.776884]
[1733442761973,0.49527294,235.94,235.78,20.0]
[1733442762167,0.49527294,235.94,235.79,23.776884]
[1733442762468,87.0,235.92,235.71,20.5623]
[1733442762647,0.49527294,235.91,235.74,20.0]
[1733442763441,87.0,235.9,235.74,20.0]
[1733442763658,0.49527294,235.89,235.75,23.776884]
[1733442763966,87.49527294,235.89,235.75,23.776884]
[1733442764269,87.0,235.89,235.75,23.776884]
[1733442764474,87.49527294,235.88,235.75,23.776884]
[1733442764647,87.0,235.88,235.75,23.776884]
[1733442764849,0.49527294,235.87,235.75,23.776884]
[1733442767245,87.0,235.86,235.71,20.5623]
[1733442767588,87.49527294,235.85,235.71,20.5623]
[1733442767872,0.57828391,235.81,235.71,20.5623]
[1733442768670,0.08301097,235.81,235.71,8.0029]
[1733442768843,87.0,235.8,235.71,8.0029]
[1733442769040,0.49527294,235.79,235.71,8.0029]
[1733442769349,87.49527294,235.79,235.66,13.0268]
[1733442769665,87.0,235.79,235.66,13.0268]
[1733442769875,0.49527294,235.78,235.66,13.0268]
[1733442770367,0.49527294,235.78,235.67,23.776884]
[1733442770543,87.49527294,235.78,235.67,23.776884]
[1733442770741,87.0,235.78,235.67,23.776884]
[1733442770943,87.0,235.78,235.67,29.50097318]
[1733442771179,87.0,235.78,235.69,23.776884]
[1733442771356,87.0,235.78,235.67,23.776884]
[1733442771678,0.49527294,235.77,235.71,23.776884]
[1733442771880,0.49527294,235.79,235.71,23.776884]
[1733442772560,0.49527294,235.79,235.67,23.776884]
[1733442772758,0.08301097,235.81,235.66,13.0268]
[1733442773068,0.08301097,235.81,235.67,6.36038393]
[1733442773240,0.08301097,235.81,235.68,5.72408918]
[1733442773444,0.08443944,235.7,235.69,6.14407387]
[1733442773669,0.08443944,235.7,235.69,11.86816305]
[1733442773970,0.09167707,235.72,235.69,35.64504705]
[1733442774152,0.49527294,235.88,235.73,20.0]
[1733442774354,87.0,235.8,235.7,5.72408918]
[1733442774748,87.0,235.88,235.67,25.72408918]
[1733442774947,0.49527294,235.87,235.67,25.72408918]
[1733442775379,87.0,235.86,235.67,25.72408918]
[1733442775672,0.49527294,235.85,235.67,25.72408918]
[1733442776464,0.49527294,235.85,235.71,20.0]
[1733442776648,87.0,235.84,235.72,23.776884]
[1733442777348,87.0,235.88,235.73,5.50793868]
[1733442777676,87.0,235.88,235.74,23.776884]
[1733442777966,87.0,235.88,235.73,5.72408918]
[1733442777967,0.49527294,235.87,235.75,20.0]
[1733442778174,0.49527294,235.87,235.73,23.776884]
[1733442778175,0.49527294,235.87,235.76,23.776884]
[1733442778369,0.49527294,235.87,235.73,23.776884]
[1733442779649,0.49527294,235.88,235.73,23.776884]
[1733442779862,0.49527294,235.93,235.8,20.0]
[1733442780064,0.49527294,235.93,235.81,23.776884]
[1733442782772,0.49527294,235.93,235.83,23.776884]
[1733442783076,87.0,236.02,235.83,24.412748]
[1733442783253,0.49527294,236.01,235.83,29.28482268]
[1733442783451,0.49527294,236.01,235.86,20.0]
[1733442783657,0.49527294,236.01,235.87,23.776884]
[1733442784681,87.0,236.03,235.91,23.776884]
[1733442784893,87.49527294,236.02,235.91,23.776884]
[1733442785172,87.0,236.09,235.96,23.776884]
[1733442785381,87.49527294,236.08,235.96,29.28482268]
[1733442785559,87.0,236.09,235.96,23.776884]
[1733442785764,87.49527294,236.08,235.96,23.776884]
[1733442786090,87.0,236.08,235.96,23.776884]
[1733442786274,87.0,236.08,235.96,29.28482268]
[1733442786467,87.0,236.08,235.98,23.776884]
[1733442786661,87.0,236.14,235.98,23.776884]
[1733442786986,81.5,236.28,235.97,5.50793868]
[1733442786987,87.0,236.19,236.1,23.776884]
[1733442787192,87.0,236.26,236.12,31.817284]
[1733442787357,87.0,236.2,236.12,31.817284]
[1733442787558,0.49527294,236.19,236.12,31.817284]
[1733442787768,87.0,236.18,236.12,31.817284]
[1733442788079,0.49527294,236.17,236.07,23.776884]
[1733442788285,87.49527294,236.25,236.06,23.776884]
[1733442788460,87.0,236.19,236.06,23.776884]
[1733442788659,87.49527294,236.18,236.06,23.776884]
[1733442788977,12.3177,236.16,236.02,20.0]
[1733442789164,87.49527294,236.15,235.99,8.0404]
[1733442789357,20.0,236.12,235.99,8.0404]
[1733442789659,12.3177,236.22,236.0,0.63547018]
[1733442789875,87.0,236.17,236.0,27.59443846]
[1733442790071,99.3177,236.28,236.01,18.75088918]
[1733442790272,0.49527294,236.27,236.02,28.2964079]
[1733442790567,87.0,236.25,236.07,20.0]
[1733442790777,87.0,236.25,236.11,20.0]
[1733442790961,87.0,236.24,236.15,23.776884]
[1733442791287,12.3177,236.34,236.15,23.776884]
[1733442791288,87.0,236.25,236.15,23.776884]
[1733442791494,12.3177,236.34,236.15,23.776884]
[1733442791495,0.49527294,236.24,236.15,23.776884]
[1733442791788,0.49527294,236.26,236.15,23.776884]
[1733442792083,87.49527294,236.26,236.15,23.776884]
[1733442792274,87.0,236.26,236.15,23.776884]
[1733442792484,87.0,236.31,236.17,23.776884]
[1733442792668,0.49527294,236.3,236.17,23.776884]
[1733442792975,0.49527294,236.3,236.21,23.776884]
[1733442793383,0.49527294,236.32,236.21,23.776884]
[1733442793592,0.08925299,236.22,236.21,23.776884]
[1733442794269,0.08132249,236.23,236.21,29.49542268]
[1733442794463,0.08132249,236.23,236.22,30.13021107]
[1733442795387,0.08216116,236.25,236.23,23.776884]
[1733442795688,0.08216116,236.25,236.24,24.41158467]
[1733442796262,1e-08,236.25,236.24,24.41158467]
[1733442796786,0.09090631,236.26,236.25,23.776884]
[1733442796971,0.49527294,236.39,236.28,20.0]
[1733442797167,87.0,236.38,236.25,7.7348]
[1733442797387,0.49527294,236.37,236.25,7.7348]
[1733442797691,87.0,236.3,236.25,7.7348]
[1733442797890,0.49527294,236.29,236.18,34.87832525]
[1733442798067,87.0,236.4,236.19,7.7348]
[1733442798068,23.776884,236.35,236.19,7.7348]
[1733442798269,0.49527294,236.34,236.19,7.7348]
[1733442798488,87.0,236.33,236.19,7.7348]
[1733442798665,0.49527294,236.32,236.19,7.7348]
[1733442798868,0.49527294,236.35,236.19,13.45333868]
[1733442799091,87.0,236.34,236.2,6.35330868]
[1733442799589,87.49527294,236.33,236.22,20.0]
[1733442799769,87.0,236.39,236.27,23.776884]
[1733442799973,87.0,236.4,236.3,20.0]
[1733442800173,87.0,236.39,236.31,20.0]
[1733442800374,87.0,236.4,236.31,20.0]
[1733442800772,87.49527294,236.39,236.31,20.0]
[1733442800971,87.0,236.39,236.28,5.71853868]
[1733442801189,0.49527294,236.38,236.27,23.776884]
[1733442801580,87.0,236.39,236.3,20.0]
[1733442802096,87.0,236.4,236.3,20.0]
[1733442802599,87.0,236.47,236.32,36.137884]
[1733442802768,0.49527294,236.46,236.32,36.137884]
[1733442803268,87.49527294,236.46,236.32,36.137884]
[1733442803474,12.5757,236.53,236.32,36.137884]
[1733442803475,87.0,236.47,236.36,23.776884]
[1733442803665,87.0,236.52,236.37,5.71853868]
[1733442803873,0.49527294,236.51,236.38,23.776884]
[1733442804069,87.49527294,236.51,236.38,23.776884]
[1733442804266,87.0,236.51,236.38,23.776884]
[1733442804604,87.49527294,236.5,236.38,23.776884]
[1733442804801,87.0,236.5,236.38,23.776884]
[1733442805010,0.49527294,236.49,236.38,23.776884]
[1733442805306,0.49527294,236.49,236.32,12.99539411]
[1733442805600,0.49527294,236.49,236.36,20.0]
[1733442805786,87.0,236.48,236.32,12.99539411]
[1733442805989,87.0,236.4,236.31,7.7348]
[1733442806292,70.61727294,236.39,236.31,7.7348]
[1733442807188,55.022,236.38,236.26,20.0958]
[1733442807390,55.51727294,236.37,236.26,20.0958]
[1733442807896,55.022,236.35,236.2,7.7348]
[1733442808200,55.022,236.33,236.2,13.45333868]
[1733442808498,55.022,236.39,236.21,6.35339182]
[1733442808671,0.49527294,236.38,236.21,6.35339182]
[1733442809071,0.49527294,236.38,236.21,12.077481]
[1733442809282,55.022,236.38,236.25,43.776884]
[1733442809484,3.9887,236.53,236.3,20.0]
[1733442809485,55.022,236.49,236.3,20.0]
[1733442809801,55.022,236.46,236.38,312.0]
[1733442810092,0.49527294,236.45,236.38,312.0]
[1733442810287,55.022,236.44,236.31,41.85642268]
[1733442810596,55.022,236.44,236.31,36.137884]
[1733442810597,0.49527294,236.43,236.31,36.137884]
[1733442811012,55.022,236.4,236.31,12.361]
[1733442811301,20.0,236.36,236.26,7.7348]
[1733442811508,55.51727294,236.35,236.26,7.7348]
[1733442811799,20.0,236.37,236.27,5.71853868]
[1733442812195,55.022,236.39,236.28,4.223]
[1733442812509,55.022,236.4,236.31,4.223]
[1733442813186,55.022,236.48,236.33,4.223]
[1733442813375,55.51727294,236.47,236.39,312.0]
[1733442813572,0.0874691,236.4,236.39,312.0]
[1733442814506,0.0874691,236.4,236.39,316.223]
[1733442815009,0.0874691,236.4,236.32,12.9229]
[1733442815191,0.0874691,236.4,236.28,23.776884]
[1733442815192,55.022,236.38,236.28,23.776884]
[1733442815379,55.022,236.38,236.29,4.223]
[1733442815583,0.49527294,236.37,236.29,4.223]
[1733442815798,55.51727294,236.37,236.28,4.223]
[1733442815992,0.49527294,236.37,236.28,4.223]
[1733442816190,0.0874691,236.4,236.3,4.223]
[1733442816409,20.0,236.38,236.3,4.223]
[1733442816702,55.022,236.35,236.21,4.223]
[1733442817034,0.49527294,236.34,236.21,4.223]
[1733442817178,55.1094691,236.4,236.23,4.223]
[1733442817509,55.1094691,236.4,236.25,4.223]
[1733442817706,55.51727294,236.39,236.27,4.223]
[1733442817896,55.51727294,236.39,236.37,312.0]
[1733442818078,55.022,236.39,236.37,312.0]
[1733442818409,55.022,236.39,236.31,4.223]
[1733442818581,0.49527294,236.38,236.27,4.223]
[1733442818901,55.022,236.37,236.27,4.223]
[1733442819113,0.49527294,236.36,236.27,4.223]
[1733442819280,55.022,236.35,236.2,4.85777823]
[1733442819484,0.49527294,236.34,236.2,6.57049519]
[1733442819702,0.49527294,236.34,236.2,4.85777823]
[1733442820002,0.49527294,236.34,236.2,4.223]
[1733442820211,0.49527294,236.34,236.23,27.999884]
[1733442820780,55.022,236.32,236.23,4.223]
[1733442821002,55.022,236.3,236.19,7.713]
[1733442821294,0.49527294,236.29,236.2,312.0]
[1733442821480,20.0,236.27,236.2,312.0]
[1733442821813,55.022,236.25,236.2,312.0]
[1733442821983,55.022,236.25,236.19,7.713]
[1733442822586,55.022,236.33,236.2,34.35335204]
[1733442822812,0.49527294,236.32,236.2,33.71842268]
[1733442823337,55.51727294,236.32,236.2,27.999884]
[1733442823528,55.51727294,236.32,236.19,7.713]
[1733442823833,55.022,236.27,236.18,22.51732525]
[1733442824132,55.022,236.25,236.18,22.51732525]
[1733442825039,55.022,236.25,236.22,312.0]
[1733442827063,55.022,236.25,236.18,22.51732525]
[1733442827329,55.022,236.3,236.18,22.51732525]
[1733442827529,20.0,236.27,236.18,22.51732525]
[1733442827721,55.022,236.25,236.18,22.51732525]
[1733442827921,20.0,236.22,236.14,7.713]
[1733442828126,55.022,236.2,236.14,7.713]
[1733442828421,0.49527294,236.19,236.14,7.713]
[1733442828742,55.022,236.2,236.14,7.713]
[1733442829242,55.022,236.29,236.15,23.776884]
[1733442829424,0.49527294,236.28,236.17,23.776884]
[1733442830127,55.022,236.27,236.25,312.0]
[1733442830519,55.022,236.33,236.2,20.0]
[1733442830819,55.022,236.34,236.22,23.776884]
[1733442831033,0.49527294,236.33,236.22,23.776884]
[1733442833523,0.49527294,236.33,236.29,312.0]
[1733442833715,55.022,236.32,236.11,39.73122882]
[1733442833916,0.49527294,236.31,236.15,0.63490433]
[1733442834123,0.49527294,236.31,236.16,5.71853868]
[1733442834837,20.0,236.29,236.16,5.71853868]
[1733442835018,55.022,236.27,236.16,5.71853868]
[1733442835223,55.022,236.27,236.17,23.776884]
[1733442835612,55.022,236.27,236.2,4.223]
[1733442835854,55.022,236.34,236.2,4.223]
[1733442836147,20.0,236.31,236.2,4.223]
[1733442836345,20.0,236.26,236.2,4.223]
[1733442836519,20.0,236.22,236.14,4.223]
[1733442836838,55.022,236.2,236.15,312.0]
[1733442837042,0.49527294,236.19,236.15,312.0]
[1733442837517,55.022,236.18,236.15,312.0]
[1733442838434,55.022,236.18,236.14,4.223]
[1733442838639,55.022,236.16,236.1,4.223]
[1733442838951,55.022,236.13,236.03,5.71853868]
[1733442839132,55.51727294,236.12,236.03,5.71853868]
[1733442839320,20.0,236.08,235.96,8.0816]
[1733442839648,20.0,236.08,235.97,9.94153868]
[1733442839839,55.51727294,236.1,235.97,9.94153868]
[1733442840018,3.9887,236.22,235.97,9.94153868]
[1733442840218,55.022,236.14,235.98,0.63536906]
[1733442840419,0.49527294,236.13,236.0,4.223]
[1733442840636,0.49527294,236.13,236.01,5.71853868]
[1733442840945,20.0,236.13,236.01,5.71853868]
[1733442841140,20.49527294,236.13,236.01,5.71853868]
[1733442841345,20.0,236.13,236.1,312.0]
[1733442841522,55.51727294,236.15,236.1,312.0]
[1733442841842,20.0,236.12,236.02,23.776884]
[1733442842030,55.022,236.09,235.9,25.57649153]
[1733442842245,0.49527294,236.08,235.95,5.71853868]
[1733442842431,0.49527294,236.08,235.96,13.80013868]
[1733442843148,0.49527294,236.08,235.96,8.0816]
[1733442844024,0.49527294,236.08,235.96,13.80013868]
[1733442844346,0.49527294,236.08,235.97,5.71853868]
[1733442844838,0.49527294,236.08,236.05,312.0]
[1733442845045,0.49527294,236.1,236.05,312.0]
[1733442845354,72.39527294,236.16,236.05,312.0]
[1733442846130,71.9,236.15,235.98,23.776884]
[1733442846350,20.0,236.12,235.99,23.776884]
[1733442846525,71.9,236.1,235.99,29.49542268]
[1733442847646,71.9,236.1,236.0,0.63539415]
[1733442847850,71.9,236.1,236.01,23.776884]
[1733442848033,71.9,236.1,236.03,23.776884]
[1733442848345,71.9,236.14,236.05,23.776884]
[1733442848553,0.49527294,236.13,236.05,23.776884]
[1733442848845,71.9,236.12,235.99,20.0]
[1733442849043,0.49527294,236.11,236.0,23.776884]
[1733442849260,71.9,236.1,236.06,312.0]
[1733442850757,71.9,236.1,236.07,4.223]
[1733442850964,71.9,236.06,235.96,8.0816]
[1733442851126,0.49527294,236.05,235.96,8.0816]
[1733442851454,72.39527294,236.06,235.96,8.0816]
[1733442851624,71.9,236.06,235.97,5.71853868]
[1733442851824,71.9,236.06,235.98,4.223]
[1733442852233,0.49527294,236.16,235.99,5.71853868]
[1733442852234,20.0,236.11,235.99,5.71853868]
[1733442852554,71.9,236.1,236.0,23.776884]
[1733442853052,72.39527294,236.1,236.01,4.223]
[1733442853250,20.0,236.07,236.02,4.223]
[1733442853463,0.49527294,236.06,236.02,4.223]
[1733442853665,0.08303241,236.03,235.96,8.0816]
[1733442853865,0.08303241,236.03,235.97,4.223]
[1733442854166,0.08303241,236.03,236.0,312.0]
[1733442855858,71.9,236.01,235.88,8.0816]
[1733442856174,0.49527294,236.0,235.88,8.0816]
[1733442856873,71.9,236.01,235.89,6.35427988]
[1733442857242,71.9,236.02,235.89,6.35427988]
[1733442857553,71.9,236.02,235.9,23.776884]
[1733442857750,0.49527294,236.01,235.9,23.776884]
[1733442858861,0.49527294,236.01,235.94,312.0]
[1733442860368,71.9,236.0,235.94,312.0]
[1733442860574,71.9,236.0,235.91,5.71853868]
[1733442860768,71.9,236.0,235.92,24.412485]
[1733442860980,0.57830535,236.03,235.92,24.412485]
[1733442861150,0.08303241,236.03,235.93,5.71853868]
[1733442861352,0.08303241,236.03,235.95,23.776884]
[1733442863563,0.08303241,236.03,236.02,312.0]
[1733442864459,0.08303241,236.03,236.02,37.57832268]
[1733442864671,0.08303241,236.03,236.02,38.21364235]
[1733442865554,0.08303241,236.03,236.02,42.43664235]
[1733442865893,0.08303241,236.03,236.02,36.71810367]
[1733442866257,0.08303241,236.03,236.02,36.082784]
[1733442867458,0.08303241,236.03,236.02,348.082784]
[1733442868359,0.08303241,236.03,236.02,353.80132268]
[1733442868560,0.08303241,236.03,236.02,348.082784]
[1733442870284,0.08303241,236.03,236.02,353.80132268]
[1733442870869,0.08303241,236.03,236.02,348.082784]
[1733442871179,0.08303241,236.03,236.02,316.223]
[1733442871791,0.08303241,236.03,235.96,8.0829]
[1733442871792,0.08303241,236.03,235.97,4.223]
[1733442871999,0.08303241,236.03,235.97,4.85849504]
[1733442872291,0.08303241,236.03,235.99,4.223]
[1733442872585,0.08303241,236.03,236.01,4.223]
[1733442872774,0.08303241,236.03,236.0,0.6353923]
[1733442873090,0.08303241,236.03,236.02,27.999884]
[1733442873390,0.08303241,236.03,236.02,4.223]
[1733442873578,0.17235589,236.03,236.02,4.223]
[1733442873777,0.17235589,236.03,236.02,0.63545056]
[1733442874086,0.17235589,236.03,236.02,0.63538587]
[1733442874691,0.17235589,236.03,236.02,312.63538587]
[1733442874989,0.17235589,236.03,236.02,316.223]
[1733442875378,0.08932348,236.03,236.02,316.223]
[1733442876593,0.08932348,236.03,236.02,312.0]
[1733442877890,0.08932348,236.03,236.02,335.776884]
[1733442878489,0.08932348,236.03,236.02,312.0]
[1733442880806,0.08932348,236.03,235.97,4.223]
[1733442881296,0.58459642,236.03,235.92,4.223]
[1733442881598,71.9,236.02,235.92,4.223]
[1733442881895,0.49527294,236.01,235.92,4.223]
[1733442882274,0.49527294,236.01,235.9,4.85864094]
[1733442882492,0.49527294,236.01,235.92,4.223]
[1733442882793,0.49527294,236.01,235.92,24.223]
[1733442883792,0.49527294,236.01,235.98,312.0]
[1733442883975,71.9,236.02,235.98,312.0]
[1733442885372,0.49527294,236.01,235.98,312.0]
[1733442886677,0.49527294,236.02,235.98,312.0]
[1733442887289,71.9,236.01,235.93,23.776884]
[1733442887489,71.9,235.98,235.89,8.3296]
[1733442887808,72.39527294,235.97,235.89,8.3296]
[1733442889172,72.48459642,236.03,235.9,29.49542268]
[1733442889369,72.48459642,236.03,235.92,23.776884]
[1733442889568,71.98932348,236.03,235.93,0.63560085]
[1733442889805,71.98932348,236.03,235.94,23.776884]
[1733442890387,0.08932348,236.03,235.99,312.0]
[1733442890990,71.9,236.02,235.99,312.0]
[1733442891988,0.49527294,236.01,235.99,312.0]
[1733442892284,0.08932348,236.03,235.99,312.0]
[1733442892482,0.58459642,236.03,235.99,312.0]
[1733442892692,0.08932348,236.03,235.99,312.0]
[1733442893006,0.58459642,236.03,235.99,312.0]
[1733442893190,0.08932348,236.03,235.99,312.0]
[1733442893583,0.08663961,236.0,235.99,312.0]
[1733442894178,0.08663961,236.0,235.98,5.71853868]
[1733442894504,0.08663961,236.0,235.96,23.776884]
[1733442894702,0.08663961,236.0,235.98,23.776884]
[1733442895288,0.08663961,236.0,235.99,24.41240287]
[1733442895802,0.08663961,236.0,235.99,28.63540287]
[1733442896314,0.08663961,236.0,235.99,4.223]
[1733442896800,0.08663961,236.0,235.97,4.223]
[1733442897190,0.08663961,236.0,235.99,316.223]
[1733442898809,0.08663961,236.0,235.97,4.223]
[1733442899109,0.08663961,236.0,235.99,27.999884]
[1733442901888,0.08663961,236.0,235.99,339.999884]
[1733442902911,0.08663961,236.0,235.93,4.223]
[1733442903119,0.08663961,236.0,235.94,0.63564267]
[1733442903306,71.9,236.2,235.97,16.5941]
[1733442903616,39.63501063,236.28,235.97,16.5941]
[1733442903617,0.49527294,236.22,236.02,4.223]
[1733442903916,84.6763,236.27,236.04,4.223]
[1733442904116,71.9,236.31,236.12,4.223]
[1733442904289,0.49527294,236.3,236.21,4.223]
[1733442904496,13.27157294,236.33,236.23,4.223]
[1733442904804,71.9,236.32,236.25,4.223]
[1733442905206,0.49527294,236.31,236.25,4.223]
[1733442905785,72.39527294,236.32,236.25,4.223]
[1733442905985,71.9,236.31,236.25,4.223]
[1733442906221,71.9,236.29,236.1,0.63481585]
[1733442906396,72.39527294,236.28,236.15,7.9439]
[1733442906591,20.0,236.25,236.15,7.9439]
[1733442906896,72.39527294,236.24,236.1,1.6743009]
[1733442907105,71.9,236.23,236.1,4.223]
[1733442907300,0.49527294,236.22,236.1,4.223]
[1733442907690,20.0,236.2,236.1,4.223]
[1733442907897,72.39527294,236.19,236.1,4.223]
[1733442908113,71.9,236.18,236.05,5.87864527]
[1733442908293,0.49527294,236.17,236.12,4.223]
[1733442908913,20.0,236.14,236.12,4.223]
[1733442909110,0.49527294,236.16,236.12,4.223]
[1733442909315,0.49527294,236.16,236.09,4.223]
[1733442909498,20.0,236.17,236.09,11.25044779]
[1733442910097,20.0,236.17,236.1,27.999884]
[1733442910498,0.49527294,236.16,236.05,4.223]
[1733442910793,71.9,236.15,236.05,4.223]
[1733442911011,0.49527294,236.14,236.05,4.223]
[1733442911226,71.9,236.13,236.05,4.223]
[1733442911427,0.49527294,236.12,235.99,7.9439]
[1733442911594,0.49527294,236.12,236.01,4.223]
[1733442911595,20.0,236.1,236.01,4.223]
[1733442911800,0.49527294,236.09,236.01,4.223]
[1733442912318,72.39527294,236.09,236.01,4.223]
[1733442912622,72.39527294,236.09,236.01,316.223]
[1733442913319,72.39527294,236.09,235.94,4.223]
[1733442913523,0.07719911,236.02,235.94,4.223]
[1733442913694,0.57247205,236.02,235.94,4.223]
[1733442914197,72.47247205,236.02,235.94,4.223]
[1733442915633,72.47247205,236.02,235.94,23.776884]
[1733442915918,71.9,236.01,235.92,24.14613977]
[1733442916119,72.39527294,236.0,235.92,24.14613977]
[1733442916425,71.9,235.96,235.82,7.7425]
[1733442916591,0.49527294,235.95,235.82,7.7425]
[1733442916794,71.9,235.94,235.82,7.7425]
[1733442917103,71.9,235.92,235.79,14.83258013]
[1733442917301,0.49527294,235.91,235.79,14.83258013]
[1733442917496,0.49527294,235.91,235.79,13.1667]
[1733442917696,0.49527294,235.91,235.78,6.28933668]
[1733442917909,71.9,235.9,235.77,1.6648706]
[1733442918101,71.9,235.88,235.76,7.7393]
[1733442918303,71.9,235.85,235.72,6.28933668]
[1733442918622,0.49527294,235.84,235.72,6.28933668]
[1733442919123,0.49527294,235.84,235.72,7.94728188]
[1733442919296,71.9,235.83,235.81,312.0]
[1733442919497,0.49527294,235.82,235.81,312.0]
[1733442920196,95.676884,235.91,235.72,6.28933668]
[1733442920396,20.0,235.88,235.73,23.776884]
[1733442920611,20.0,235.83,235.71,23.776884]
[1733442920813,20.0,235.83,235.7,7.7393]
[1733442920814,71.9,235.81,235.7,7.7393]
[1733442921011,0.49527294,235.8,235.7,7.7393]
[1733442921215,71.9,235.78,235.67,6.28933668]
[1733442921418,71.9,235.76,235.67,6.28933668]
[1733442921632,0.49527294,235.75,235.67,6.28933668]
[1733442922504,0.49527294,235.75,235.65,81.72274459]
[1733442922724,0.49527294,235.75,235.67,5.7262522]
[1733442922903,0.49527294,235.75,235.65,88.01208127]
[1733442923219,0.49527294,235.75,235.71,312.0]
[1733442923413,72.39527294,235.75,235.71,312.0]
[1733442924522,72.39527294,235.75,235.65,86.28933668]
[1733442924725,71.9,235.75,235.68,20.0]
[1733442925024,71.9,235.81,235.7,23.776884]
[1733442925234,71.9,235.81,235.72,23.776884]
[1733442925523,72.39527294,235.85,235.72,23.776884]
[1733442925830,71.9,235.9,235.74,23.328084]
[1733442926031,71.9,235.88,235.77,20.0]
[1733442926236,0.49527294,235.91,235.79,20.0]
[1733442926531,13.3295,235.99,235.78,6.92527599]
[1733442926532,72.39527294,235.97,235.81,20.0]
[1733442926701,72.39527294,235.97,235.78,6.28933668]
[1733442927528,71.9,235.96,235.89,312.0]
[1733442927825,0.49527294,235.98,235.9,23.776884]
[1733442928137,0.07719911,236.02,235.92,23.776884]
[1733442928433,0.57247205,236.02,235.94,23.776884]
[1733442929651,0.57247205,236.02,235.92,23.776884]
[1733442929927,0.07719911,236.02,235.94,23.776884]
[1733442930534,0.07719911,236.02,235.95,0.6356043]
[1733442930705,0.07719911,236.02,235.96,23.776884]
[1733442930903,0.07719911,236.02,236.01,20.0]
[1733442931214,0.07719911,236.02,236.01,362.06622068]
[1733442932135,0.07719911,236.02,236.01,342.06622068]
[1733442932440,0.07719911,236.02,236.01,335.776884]